bitfinex/quotes_ETHUSD_20250824
["timestamp","ask_amount","ask_price","bid_price","bid_amount"]
[1756045502939,1.0,4787.4,4787.3,3.9972]
[1756045503146,1.0,4787.4,4787.3,0.3992]
[1756045504074,0.65,4787.4,4787.3,0.3992]
[1756045504473,0.65,4787.4,4787.3,0.001]
[1756045504678,1.10079518,4787.4,4787.3,0.001]
[1756045505051,1.10079518,4787.4,4787.3,0.2944]
[1756045505977,1.10079518,4787.4,4787.3,0.001]
[1756045505978,1.37659518,4787.4,4787.3,0.001]
[1756045506290,1.77579518,4787.4,4787.3,0.001]
[1756045507286,1.49999518,4787.4,4787.3,0.001]
[1756045507443,1.20559518,4787.4,4787.3,0.2944]
[1756045508182,1.10079518,4787.4,4787.3,0.2944]
[1756045509487,1.17519518,4787.4,4787.3,0.2944]
[1756045509693,1.17519518,4787.4,4787.3,1.12212]
[1756045510168,1.17519518,4787.4,4787.3,0.7223]
[1756045512986,1.17519518,4787.4,4787.3,4.3193]
[1756045513783,1.17519518,4787.4,4787.3,0.001]
[1756045514084,1.17519518,4787.4,4787.3,0.2944]
[1756045514487,1.17519518,4787.4,4787.3,0.001]
[1756045515673,1.48159518,4787.4,4787.3,0.001]
[1756045515859,2.92437693,4787.4,4787.3,0.001]
[1756045516064,3.48853718,4787.4,4787.3,0.001]
[1756045516265,4.11657718,4787.4,4787.3,0.001]
[1756045517652,6.20539365,4787.4,4787.3,0.001]
[1756045517853,19.2772334,4787.4,4787.3,0.001]
[1756045518081,20.02495788,4787.4,4787.3,0.001]
[1756045518293,19.2772334,4787.4,4787.3,0.001]
[1756045518614,17.94034151,4787.4,4787.3,0.001]
[1756045518753,17.18841693,4787.4,4787.3,0.001]
[1756045519076,17.94034152,4787.4,4787.3,0.001]
[1756045519273,17.18841693,4787.4,4787.3,0.001]
[1756045519588,17.94029175,4787.4,4787.3,0.001]
[1756045520189,17.46959175,4787.4,4787.3,0.001]
[1756045520390,15.54403518,4787.4,4787.3,0.2944]
[1756045520685,11.94803518,4787.4,4787.3,0.2944]
[1756045521290,11.94803518,4787.4,4787.3,0.001]
[1756045521591,12.25443518,4787.4,4787.3,0.001]
[1756045522588,9.25443518,4787.4,4787.3,0.001]
[1756045522761,8.94803518,4787.4,4787.3,0.001]
[1756045522962,9.51198433,4787.4,4787.3,0.001]
[1756045523160,9.83882789,4787.4,4787.3,0.001]
[1756045524172,9.83882789,4787.4,4787.3,0.31]
[1756045524691,9.83882789,4787.4,4787.3,0.001]
[1756045524692,10.11462789,4787.4,4787.3,0.001]
[1756045525099,14.34532464,4787.4,4787.3,0.001]
[1756045525260,12.15625674,4787.4,4787.3,0.001]
[1756045525464,17.83907321,4787.4,4787.3,0.001]
[1756045525680,20.83907321,4787.4,4787.3,0.001]
[1756045525894,21.59094803,4787.4,4787.3,0.001]
[1756045528097,21.59097947,4787.4,4787.3,0.001]
[1756045528300,21.59132695,4787.4,4787.3,0.001]
[1756045531499,21.59322695,4787.4,4787.3,0.001]
[1756045531802,21.12762695,4787.4,4787.3,0.001]
[1756045532003,19.50441048,4787.4,4787.3,0.001]
[1756045532410,19.03881048,4787.4,4787.3,0.001]
[1756045533208,15.16901048,4787.4,4787.3,0.31]
[1756045533409,25.11359283,4787.4,4787.3,0.31]
[1756045533779,14.54097048,4787.4,4787.3,0.31]
[1756045533990,9.10614368,4787.4,4787.3,0.7682]
[1756045534190,8.54438622,4787.4,4787.3,0.7682]
[1756045534510,1.50438622,4787.4,4787.3,0.7682]
[1756045534699,1.17754266,4787.4,4787.3,0.7682]
[1756045536180,1.17754266,4787.4,4787.3,0.873]
[1756045539012,1.17754266,4787.4,4787.3,0.31]
[1756045539694,1.17754266,4787.4,4787.3,0.7682]
[1756045543624,1.17754266,4787.4,4787.3,0.31]
[1756045544449,1.17754266,4787.4,4787.3,0.7682]
[1756045546223,1.17754266,4787.4,4787.3,0.873]
[1756045546393,0.7264,4787.4,4787.3,0.873]
[1756045547217,0.7264,4787.4,4787.3,1.121]
[1756045547423,0.7264,4787.4,4787.3,1.781]
[1756045548859,0.7264,4787.4,4787.3,4.781]
[1756045549057,0.7264,4787.4,4787.3,6.8698601]
[1756045549614,0.7264,4787.4,4787.3,8.371]
[1756045550254,0.7264,4787.4,4787.3,4.781]
[1756045550422,0.7264,4787.4,4787.3,8.371]
[1756045551419,0.7264,4787.4,4787.3,10.4598601]
[1756045552542,0.7264,4787.4,4787.3,32.0105351]
[1756045552744,0.7264,4787.4,4787.3,28.4243801]
[1756045553049,0.7264,4787.4,4787.3,25.0910911]
[1756045553229,0.7264,4787.4,4787.3,22.6160911]
[1756045554039,0.7264,4787.4,4787.3,19.0260911]
[1756045554250,0.7264,4787.4,4787.3,18.3137431]
[1756045554441,0.7264,4787.4,4787.3,12.7237531]
[1756045554952,0.7264,4787.4,4787.3,10.4588601]
[1756045556264,0.7264,4787.4,4787.3,20.9376241]
[1756045556469,0.7264,4787.4,4787.3,20.5055241]
[1756045558253,0.7264,4787.4,4787.3,20.5035241]
[1756045562228,0.7264,4787.4,4787.3,40.4568601]
[1756045562430,0.002,4787.8,4787.7,2.74868559]
[1756045562627,0.002,4787.8,4787.7,33.56234994]
[1756045562854,0.002,4787.8,4787.7,26.15556594]
[1756045563155,0.002,4787.8,4787.7,26.26036594]
[1756045563324,0.002,4787.8,4787.7,27.74896094]
[1756045563531,0.002,4787.8,4787.7,29.57127794]
[1756045563728,0.002,4787.8,4787.7,12.31016359]
[1756045563938,0.002,4787.8,4787.7,8.72416359]
[1756045564259,0.002,4787.8,4787.7,11.86786359]
[1756045564639,0.002,4787.8,4787.7,8.0796]
[1756045564958,0.2875,4787.8,4787.7,3.1048]
[1756045565161,0.2875,4787.8,4787.7,0.1048]
[1756045565162,0.762,4787.8,4787.7,0.1048]
[1756045565369,0.762,4787.8,4787.7,3.6908]
[1756045565928,0.762,4787.8,4787.7,0.1048]
[1756045566145,0.762,4787.8,4787.7,3.6898]
[1756045566944,0.762,4787.8,4787.7,0.1048]
[1756045567145,1.53636224,4787.8,4787.7,3.6898]
[1756045567836,0.762,4787.8,4787.7,3.6898]
[1756045568362,0.762,4787.8,4787.7,3.585]
[1756045569054,0.762,4787.8,4787.7,3.6898]
[1756045570465,0.2875,4787.8,4787.7,6.6898]
[1756045570759,0.762,4787.8,4787.7,6.6898]
[1756045570966,0.762,4787.8,4787.7,7.35888]
[1756045571143,0.2875,4787.8,4787.7,7.35888]
[1756045571937,0.002,4787.8,4787.7,8.30538]
[1756045572957,0.002,4787.8,4787.7,8.74768]
[1756045573539,0.002,4787.8,4787.7,8.30538]
[1756045573738,0.002,4787.8,4787.7,8.74768]
[1756045574168,0.002,4787.8,4787.7,8.30538]
[1756045574533,0.002,4787.8,4787.7,8.74768]
[1756045579979,0.2875,4787.8,4787.7,4.43388]
[1756045580277,0.762,4787.8,4787.7,6.6878]
[1756045580489,0.762,4787.8,4787.7,7.3478]
[1756045581170,0.2875,4787.8,4787.7,7.3478]
[1756045585459,0.7283,4787.8,4787.7,3.6868]
[1756045587718,0.7283,4787.8,4787.7,0.1048]
[1756045587919,0.7283,4787.8,4787.7,3.6868]
[1756045588617,0.2875,4787.8,4787.7,3.6868]
[1756045589024,0.002,4787.8,4787.7,3.6868]
[1756045589723,0.3134,4787.8,4787.7,3.6868]
[1756045593393,0.6395,4787.8,4787.7,3.6868]
[1756045595522,0.002,4787.8,4787.7,4.4502]
[1756045595724,0.002,4787.8,4787.7,7.82186]
[1756045596223,0.002,4787.8,4787.7,8.48186]
[1756045598659,0.002,4787.8,4787.7,10.57054559]
[1756045598855,0.002,4787.8,4787.7,8.48186]
[1756045599715,0.002,4787.8,4787.7,10.57054559]
[1756045601716,0.002,4787.8,4787.7,8.48186]
[1756045601917,0.002,4787.8,4787.7,10.57054559]
[1756045602518,0.002,4787.8,4787.7,8.48186]
[1756045603727,0.3134,4787.8,4787.7,4.13646]
[1756045603929,0.002,4787.8,4787.7,7.3428]
[1756045604144,0.002,4787.8,4787.7,7.6498]
[1756045604351,0.002,4787.8,4787.7,8.1062]
[1756045605119,0.002,4787.8,4787.7,10.19488559]
[1756045605971,7.73382235,4787.8,4787.3,0.0298]
[1756045606259,1.21438223,4787.7,4787.4,3.577]
[1756045606466,0.3114,4787.5,4787.4,3.577]
[1756045606868,0.7522,4787.5,4787.4,3.577]
[1756045607216,0.4408,4787.5,4787.4,3.577]
[1756045607422,0.002,4787.8,4787.5,0.66]
[1756045607621,0.002,4787.8,4787.6,1.606]
[1756045607852,0.3114,4787.7,4787.6,1.606]
[1756045608030,0.3114,4787.7,4787.6,5.183]
[1756045608758,0.7522,4787.7,4787.6,5.183]
[1756045610133,0.002,4787.8,4787.7,0.66]
[1756045610330,0.002,4787.8,4787.7,0.967]
[1756045611851,0.002,4787.8,4787.7,1.4234]
[1756045612018,0.002,4787.8,4787.7,0.967]
[1756045613742,0.002,4787.8,4787.7,4.4189]
[1756045614048,0.002,4787.8,4787.7,5.440808]
[1756045615362,0.002,4787.8,4787.7,7.52949359]
[1756045615562,0.002,4787.8,4787.7,5.440808]
[1756045615969,0.002,4787.8,4787.7,5.545608]
[1756045618257,0.002,4787.8,4787.7,7.63429359]
[1756045620378,0.002,4787.8,4787.7,5.545608]
[1756045621295,0.002,4787.8,4787.7,7.63429359]
[1756045622822,0.002,4787.8,4787.7,37.52949359]
[1756045622976,0.002,4787.8,4787.7,37.63429359]
[1756045623913,0.002,4787.8,4787.7,37.71795959]
[1756045624283,0.002,4787.8,4787.7,15.84874359]
[1756045624703,0.002,4787.8,4787.7,7.71795959]
[1756045624886,0.002,4787.8,4787.7,24.71771359]
[1756045625312,0.002,4787.8,4787.7,16.19146059]
[1756045625515,0.002,4787.8,4787.7,17.79540659]
[1756045625711,0.002,4787.8,4787.7,11.29295959]
[1756045625919,0.002,4787.8,4787.7,25.68835959]
[1756045626917,0.002,4787.8,4787.7,27.89578859]
[1756045627843,0.002,4787.8,4787.7,31.83794459]
[1756045628813,0.002,4787.8,4787.7,41.29295959]
[1756045629124,0.002,4787.8,4787.7,43.49495959]
[1756045630188,0.002,4787.9,4787.8,7.95064196]
[1756045630395,0.002,4787.9,4787.8,40.85501996]
[1756045631323,0.002,4787.9,4787.8,22.54213596]
[1756045631515,0.002,4787.9,4787.8,14.12633396]
[1756045631820,0.002,4787.9,4787.8,14.57823396]
[1756045631989,0.002,4787.9,4787.8,42.22701996]
[1756045632412,0.002,4787.9,4787.8,27.86188896]
[1756045632614,0.002,4787.9,4787.8,23.35775796]
[1756045632818,0.002,4787.9,4787.8,22.90585796]
[1756045633006,0.002,4787.9,4787.8,41.77511996]
[1756045633330,0.002,4787.9,4787.8,42.22701996]
[1756045636038,0.002,4787.9,4787.8,44.42901996]
[1756045636205,0.956,4788.6,4788.5,2.74833663]
[1756045636400,0.956,4788.6,4788.5,11.20117029]
[1756045636705,1.2594,4788.6,4788.5,11.30597029]
[1756045637418,1.7109,4788.6,4788.5,11.30597029]
[1756045638528,1.7109,4788.6,4788.5,7.89102241]
[1756045638733,1.7109,4788.6,4788.5,11.46302241]
[1756045639028,1.2594,4788.6,4788.5,11.46302241]
[1756045639740,1.2594,4788.6,4788.5,11.56600575]
[1756045639934,0.956,4788.6,4788.5,11.87660575]
[1756045640136,0.956,4788.6,4788.5,11.77362241]
[1756045641239,0.956,4788.6,4788.5,11.87993389]
[1756045642440,0.956,4788.6,4788.5,12.07400053]
[1756045642736,0.956,4788.6,4788.5,11.96920053]
[1756045643337,0.9272,4788.6,4788.5,11.96920053]
[1756045643636,0.9272,4788.6,4788.5,11.65860053]
[1756045643841,1.2136,4788.6,4788.5,11.65860053]
[1756045644440,1.2136,4788.6,4788.5,11.55128905]
[1756045644441,1.66,4788.6,4788.5,11.55128905]
[1756045644640,0.9272,4788.6,4788.5,11.94600262]
[1756045645817,1.2136,4788.6,4788.5,11.55128905]
[1756045646110,1.66,4788.6,4788.5,11.55128905]
[1756045646456,1.2136,4788.6,4788.5,11.55128905]
[1756045646617,1.66,4788.6,4788.5,9.03006664]
[1756045647255,1.66,4788.6,4788.5,5.836]
[1756045647439,1.66,4788.6,4788.5,5.370361]
[1756045647817,1.66,4788.6,4788.5,4.799361]
[1756045648021,1.66,4788.6,4788.5,8.369361]
[1756045648319,1.66,4788.6,4788.5,8.835]
[1756045648518,1.66,4788.6,4788.5,5.835]
[1756045648724,1.66,4788.6,4788.5,8.835]
[1756045650257,1.66,4788.6,4788.5,8.175]
[1756045650561,1.662,4788.6,4788.5,8.175]
[1756045651056,1.662,4788.6,4788.5,5.175]
[1756045651961,1.8304,4788.6,4788.5,1.605]
[1756045652129,1.8304,4788.6,4788.5,5.175]
[1756045652535,1.8304,4788.6,4788.5,1.605]
[1756045652749,1.8304,4788.6,4788.5,5.175]
[1756045656223,8.81002235,4788.6,4788.5,5.175]
[1756045657059,8.81002235,4788.6,4788.3,0.1048]
[1756045657361,1.40285874,4788.5,4787.8,1.606]
[1756045657523,7.26602235,4787.9,4787.8,1.606]
[1756045657727,7.26602235,4787.9,4787.8,5.175]
[1756045657928,7.71242235,4787.9,4787.8,5.175]
[1756045659435,7.71242235,4787.9,4787.8,1.606]
[1756045659637,8.55693169,4787.9,4787.8,5.175]
[1756045665458,8.55693169,4787.9,4787.8,5.174]
[1756045666960,8.55693169,4787.9,4787.8,1.606]
[1756045667185,8.55693169,4787.9,4787.8,5.174]
[1756045667553,9.18484169,4787.9,4787.8,5.174]
[1756045674758,9.18484169,4787.9,4787.8,5.173]
[1756045676674,9.18484169,4787.9,4787.8,3.568]
[1756045681573,0.62791,4787.9,4787.8,4.3294]
[1756045682205,0.1048,4788.1,4787.8,4.3294]
[1756045682922,0.45067091,4788.3,4787.9,0.4738]
[1756045683076,7.04,4788.5,4788.2,0.2876]
[1756045683277,0.45089032,4788.4,4788.3,4.0398]
[1756045683675,0.45089032,4788.4,4788.3,3.8536]
[1756045683916,1.59807935,4788.4,4787.9,0.1048]
[1756045684107,7.08442235,4788.0,4787.8,0.001]
[1756045684403,0.74339032,4787.9,4787.8,0.001]
[1756045684768,1.21299032,4787.9,4787.8,0.001]
[1756045686373,0.74339032,4787.9,4787.8,0.001]
[1756045687915,1.72497698,4787.9,4787.8,0.001]
[1756045688114,2.19457698,4787.9,4787.8,0.001]
[1756045690176,8.70459933,4787.9,4787.8,0.001]
[1756045691128,7.43051267,4787.9,4787.8,0.2886]
[1756045691800,7.72301267,4787.9,4787.8,0.001]
[1756045692178,7.43051267,4787.9,4787.8,0.2886]
[1756045692754,7.72301267,4787.9,4787.8,0.001]
[1756045692961,8.19261267,4787.9,4787.8,0.001]
[1756045693160,8.60912968,4787.9,4787.8,0.001]
[1756045693311,8.31662968,4787.9,4787.8,0.2886]
[1756045695539,8.88038714,4787.9,4787.8,3.8526]
[1756045695741,1.90076479,4787.9,4787.8,3.8526]
[1756045695916,1.01464778,4787.9,4787.8,3.8526]
[1756045696115,0.45089032,4787.9,4787.8,3.8526]
[1756045696334,0.45089032,4787.9,4787.8,4.3264]
[1756045696827,0.45089032,4787.9,4787.8,3.8526]
[1756045697646,0.74339032,4787.9,4787.8,3.565]
[1756045698955,1.80016285,4787.9,4787.8,3.565]
[1756045699245,1.80016285,4787.9,4787.8,0.001]
[1756045699418,2.26976285,4787.9,4787.8,3.564]
[1756045699619,2.83352031,4787.9,4787.8,3.564]
[1756045700523,2.07142031,4787.9,4787.8,3.8516]
[1756045700747,1.01464778,4787.9,4787.8,4.3254]
[1756045701033,0.45089032,4787.9,4787.8,4.3254]
[1756045702250,0.45089032,4787.9,4787.8,3.8516]
[1756045704362,1.01464778,4787.9,4787.8,3.8516]
[1756045704718,0.45089032,4787.9,4787.8,3.8516]
[1756045705476,0.45089032,4787.9,4787.8,3.564]
[1756045705759,1.43145555,4787.9,4787.8,3.8596]
[1756045706122,1.43145555,4787.9,4787.8,4.3331]
[1756045706366,1.43145555,4787.9,4787.8,0.001]
[1756045706367,1.72425555,4787.9,4787.8,0.001]
[1756045706554,5.74505555,4787.9,4787.8,0.001]
[1756045707061,6.37303755,4787.9,4787.8,0.001]
[1756045708430,2.35223755,4787.9,4787.8,0.001]
[1756045708631,3.10481913,4787.9,4787.8,0.001]
[1756045709164,3.56741913,4787.9,4787.8,0.001]
[1756045713055,3.89423359,4787.9,4787.8,0.001]
[1756045713260,10.11845594,4787.9,4787.8,0.001]
[1756045713456,10.41125594,4787.9,4787.8,0.001]
[1756045713827,10.42235594,4787.9,4787.8,0.001]
[1756045714032,10.41125594,4787.9,4787.8,0.001]
[1756045714265,10.11845594,4787.9,4787.8,0.2966]
[1756045714469,8.38530913,4787.9,4787.8,0.2966]
[1756045714670,8.94955847,4787.9,4787.8,0.2966]
[1756045714835,8.94955847,4787.9,4787.8,0.001]
[1756045715369,7.75732713,4787.9,4787.8,0.2966]
[1756045715571,8.79608103,4787.9,4787.8,0.2966]
[1756045716686,8.23182713,4787.9,4787.8,0.2966]
[1756045718093,8.23182713,4787.9,4787.8,0.001]
[1756045718661,8.98440871,4787.9,4787.8,0.001]
[1756045719496,8.23182713,4787.9,4787.8,0.001]
[1756045719985,8.98422309,4787.9,4787.8,0.001]
[1756045720597,8.98422309,4787.9,4787.4,0.001]
[1756045720598,3.0,4787.8,4787.4,0.001]
[1756045720894,10.27242235,4787.5,4787.4,0.001]
[1756045721094,15.41102901,4787.5,4787.4,0.001]
[1756045721298,3.0,4787.4,4787.3,0.001]
[1756045721506,6.15251337,4787.4,4787.3,0.001]
[1756045721865,6.23626427,4787.4,4787.3,0.001]
[1756045723404,5.10791472,4787.4,4787.3,0.001]
[1756045723907,6.56313053,4787.4,4787.3,0.001]
[1756045724260,5.43478098,4787.4,4787.3,0.001]
[1756045726101,5.12938098,4787.4,4787.3,0.001]
[1756045726259,11.81620333,4787.4,4787.3,0.001]
[1756045726663,12.10900333,4787.4,4787.3,0.001]
[1756045727098,12.57160333,4787.4,4787.3,0.001]
[1756045728592,1.83658098,4787.4,4787.3,0.001]
[1756045728767,11.92100333,4787.4,4787.3,0.2966]
[1756045728967,8.59413707,4787.4,4787.3,0.7701]
[1756045729163,0.63943232,4787.4,4787.3,0.7701]
[1756045729368,0.45089032,4787.4,4787.3,0.7701]
[1756045730469,0.45089032,4787.4,4787.3,2.3761]
[1756045730667,0.56336999,4788.2,4787.3,2.4809]
[1756045730984,0.45063801,4788.1,4787.4,0.4735]
[1756045731182,0.45063801,4788.0,4787.6,0.1048]
[1756045731387,0.45063801,4787.9,4787.7,0.4735]
[1756045731698,0.45063801,4787.8,4787.7,0.4735]
[1756045731893,0.45063801,4787.8,4787.7,0.7771]
[1756045732098,0.002,4787.9,4787.7,1.050809]
[1756045732301,0.002,4787.9,4787.8,0.4525]
[1756045732504,0.002,4787.9,4787.8,0.7561]
[1756045734077,0.002,4787.9,4787.8,4.3131]
[1756045739205,0.002,4787.9,4787.8,4.4179]
[1756045739536,0.002,4787.9,4787.8,4.9118799]
[1756045743214,0.002,4787.9,4787.8,0.4084]
[1756045743416,0.002,4787.9,4787.8,3.6598]
[1756045744998,0.002,4787.9,4787.8,3.9634]
[1756045745612,0.002,4787.9,4787.8,4.4159]
[1756045751734,0.2987,4787.9,4787.8,0.1048]
[1756045752031,0.7696,4787.9,4787.8,3.6578]
[1756045752496,0.2987,4787.9,4787.8,3.6578]
[1756045752899,0.002,4787.9,4787.8,3.9614]
[1756045753111,0.002,4787.9,4787.8,3.6578]
[1756045753327,0.002,4787.9,4787.8,3.9614]
[1756045755334,0.002,4787.9,4787.8,3.6578]
[1756045756222,0.2987,4787.9,4787.8,3.6578]
[1756045757711,0.2987,4787.9,4787.8,0.1048]
[1756045757934,0.2987,4787.9,4787.8,3.6558]
[1756045759948,0.2987,4787.9,4787.8,0.1048]
[1756045760154,1.9486984,4787.9,4787.8,3.551]
[1756045760353,1.9486984,4787.9,4787.5,0.1048]
[1756045760514,0.92216617,4787.8,4787.6,3.551]
[1756045760718,0.74796617,4787.7,4787.6,3.551]
[1756045760919,1.21886617,4787.7,4787.6,3.551]
[1756045761720,2.11169825,4787.7,4787.6,3.551]
[1756045762238,0.45126617,4787.7,4787.6,3.864]
[1756045762446,0.45126617,4787.7,4787.6,4.4339]
[1756045763543,0.45126617,4787.7,4787.6,3.9688]
[1756045764242,0.45126617,4787.7,4787.6,4.4339]
[1756045764774,0.45126617,4787.7,4787.6,5.03809]
[1756045765364,0.002,4787.9,4787.6,5.03809]
[1756045765564,0.45157738,4787.8,4787.6,5.03809]
[1756045765762,0.002,4787.9,4787.7,0.4651]
[1756045765941,0.45157734,4787.8,4787.7,0.4651]
[1756045766139,0.45157734,4787.8,4787.7,1.411309]
[1756045770201,0.002,4787.9,4787.7,1.411309]
[1756045770505,0.002,4787.9,4787.8,4.0141]
[1756045770803,0.45355979,4787.9,4787.8,4.3271]
[1756045771670,0.002,4787.9,4787.8,4.3271]
[1756045771895,0.002,4787.9,4787.8,4.8336109]
[1756045777511,0.002,4787.9,4787.8,4.0555109]
[1756045777713,0.002,4787.9,4787.6,0.1048]
[1756045777883,0.2963,4787.7,4787.6,0.1048]
[1756045778078,0.002,4787.9,4787.6,3.6528]
[1756045779327,0.002,4787.9,4787.7,1.606]
[1756045779491,0.002,4787.9,4787.8,3.547]
[1756045779822,0.2983,4787.9,4787.8,3.547]
[1756045780129,0.7714,4787.9,4787.8,3.547]
[1756045780826,0.2983,4787.9,4787.8,3.547]
[1756045782515,0.002,4787.9,4787.8,3.547]
[1756045783713,0.002,4787.9,4787.8,3.86]
[1756045783908,0.002,4787.9,4787.8,3.547]
[1756045784328,0.2983,4787.9,4787.8,3.547]
[1756045784522,0.002,4787.9,4787.8,3.547]
[1756045785527,0.002,4787.9,4787.7,1.606]
[1756045786027,0.002,4787.9,4787.8,3.546]
[1756045786219,0.002,4787.9,4787.8,3.859]
[1756045786535,0.002,4787.9,4787.8,4.92759]
[1756045786733,0.002,4787.9,4787.8,5.03239]
[1756045789629,0.002,4787.9,4787.8,8.03239]
[1756045790795,0.002,4787.9,4787.8,10.78103196]
[1756045791401,0.2983,4787.9,4787.8,7.88094]
[1756045791645,0.2983,4787.9,4787.8,6.6498]
[1756045792299,0.002,4787.9,4787.8,6.9423]
[1756045792659,0.002,4787.9,4787.8,7.3703]
[1756045792833,0.002,4787.9,4787.8,6.9423]
[1756045793144,0.002,4787.9,4787.8,6.6498]
[1756045793451,0.002,4787.9,4787.8,7.81068]
[1756045794138,0.002,4787.9,4787.8,7.51818]
[1756045794311,0.298,4787.9,4787.8,3.1048]
[1756045794505,0.7424,4787.9,4787.8,6.6488]
[1756045794944,0.298,4787.9,4787.8,6.6488]
[1756045796112,0.002,4787.9,4787.8,6.9413]
[1756045796315,0.002,4787.9,4787.8,6.6488]
[1756045796531,0.298,4787.9,4787.8,6.6488]
[1756045797532,0.298,4787.9,4787.8,3.1048]
[1756045797844,0.298,4787.9,4787.8,6.6488]
[1756045798144,0.7424,4787.9,4787.8,6.6488]
[1756045798352,0.7424,4787.9,4787.8,3.6488]
[1756045798819,0.298,4787.9,4787.8,3.6488]
[1756045800339,0.298,4787.9,4787.8,0.1048]
[1756045800553,7.72202235,4787.9,4787.8,3.6478]
[1756045800717,8.94561389,4787.9,4787.8,3.543]
[1756045801242,0.4533893,4787.9,4787.8,3.543]
[1756045801445,0.002,4787.9,4787.8,4.2635]
[1756045801810,0.002,4787.9,4787.8,4.3683]
[1756045803045,0.002,4787.9,4787.8,9.45694196]
[1756045803213,0.002,4787.9,4787.8,10.46540946]
[1756045803413,0.002,4787.9,4787.8,11.12540946]
[1756045804755,0.002,4787.9,4787.8,8.6077675]
[1756045804957,0.002,4787.9,4787.8,9.0357675]
[1756045805814,0.002,4787.9,4787.8,8.6077675]
[1756045806417,0.002,4787.9,4787.8,7.6552675]
[1756045806643,0.298,4787.9,4787.8,7.6552675]
[1756045807330,0.298,4787.9,4787.8,6.6468]
[1756045807545,0.298,4787.9,4787.8,3.1048]
[1756045807713,0.002,4787.9,4787.8,6.9393]
[1756045807919,0.002,4787.9,4787.8,8.0273]
[1756045809046,0.002,4787.9,4787.8,10.11594196]
[1756045809249,0.002,4787.9,4787.8,11.33641736]
[1756045814047,0.002,4787.9,4787.8,9.2477754]
[1756045814353,0.002,4787.9,4787.8,11.33641736]
[1756045815020,0.002,4787.9,4787.8,8.8187754]
[1756045815216,0.298,4787.9,4787.8,4.3252754]
[1756045815422,0.298,4787.9,4787.8,6.6458]
[1756045815835,0.298,4787.9,4787.8,8.2518]
[1756045816355,0.002,4787.9,4787.8,8.2518]
[1756045818020,0.002,4787.9,4787.8,8.9723]
[1756045819344,0.002,4787.9,4787.8,8.5443]
[1756045820948,0.002,4787.9,4787.8,10.31041104]
[1756045821150,0.002,4787.9,4787.8,12.827053]
[1756045821343,0.002,4787.9,4787.8,10.73841104]
[1756045822029,0.002,4787.9,4787.8,10.01791104]
[1756045822229,0.3056,4787.9,4787.8,8.9118]
[1756045822430,0.002,4787.9,4787.8,8.9118]
[1756045822829,0.002,4787.9,4787.8,9.2109]
[1756045823830,0.002,4787.9,4787.8,8.9118]
[1756045824239,0.3056,4787.9,4787.8,8.2518]
[1756045824440,0.7372,4787.9,4787.8,5.2518]
[1756045824935,0.7372,4787.9,4787.8,5.2508]
[1756045827134,0.7372,4787.9,4787.8,1.7108]
[1756045827565,1.50888223,4787.9,4787.8,3.54]
[1756045827765,2.13675723,4787.9,4787.8,3.54]
[1756045828269,9.56757677,4787.9,4787.7,3.54]
[1756045828446,0.88279719,4787.8,4787.5,3.54]
[1756045828648,0.3036,4787.6,4787.3,0.001]
[1756045828956,6.97962235,4787.4,4787.3,3.541]
[1756045829272,7.71482235,4787.4,4787.3,0.001]
[1756045831647,8.34278235,4787.4,4787.3,0.001]
[1756045833175,7.71482235,4787.4,4787.3,0.001]
[1756045833341,9.0426414,4787.4,4787.3,0.001]
[1756045833546,9.6706864,4787.4,4787.3,0.001]
[1756045834650,9.99752571,4787.4,4787.3,0.001]
[1756045835445,9.54734466,4787.4,4787.3,0.001]
[1756045837555,16.53672865,4787.4,4787.3,0.001]
[1756045838597,18.62554512,4787.4,4787.3,0.001]
[1756045839089,16.53672865,4787.4,4787.3,0.001]
[1756045840184,18.62554512,4787.4,4787.3,0.001]
[1756045840355,16.53672865,4787.4,4787.3,0.001]
[1756045840552,18.62554512,4787.4,4787.3,0.001]
[1756045840758,18.62554512,4787.4,4786.8,0.021]
[1756045840759,2.08895329,4787.1,4786.8,0.021]
[1756045841071,16.09784307,4787.0,4786.8,0.021]
[1756045841272,16.52944307,4787.0,4786.8,0.021]
[1756045843391,16.08005908,4787.0,4786.8,0.021]
[1756045843593,16.16381108,4787.0,4786.8,0.021]
[1756045843799,16.61267614,4787.0,4786.8,0.021]
[1756045844163,18.70166715,4787.0,4786.8,0.021]
[1756045844468,3.0,4786.9,4786.4,0.001]
[1756045844795,10.28322235,4786.5,4786.4,0.001]
[1756045844967,14.37588741,4786.5,4786.4,0.001]
[1756045845170,14.80748741,4786.5,4786.4,0.001]
[1756045846105,15.13441683,4786.5,4786.4,0.001]
[1756045846278,15.21817583,4786.5,4786.4,0.001]
[1756045846587,16.09581383,4786.5,4786.4,0.001]
[1756045847011,12.45201383,4786.5,4786.4,0.001]
[1756045847192,12.55681383,4786.5,4786.4,0.001]
[1756045847394,16.09681383,4786.5,4786.4,0.001]
[1756045848700,2.14559148,4786.5,4786.4,0.001]
[1756045848899,1.066197,4786.5,4786.4,0.3001]
[1756045849438,0.188559,4786.5,4786.4,0.3001]
[1756045849654,1.609,4787.9,4786.4,0.8371]
[1756045849827,0.3001,4787.6,4786.5,0.4322]
[1756045850001,0.3001,4787.6,4787.5,0.2991]